Workbook

Sheet Baiting Calculator
B1: BASIC INFORMATION
B2: Client's Name | C2: 0 | H2: Job number | I2: 0
B3: Address | C3: 0 | H3: Inspection completed | I3: 0
B4: Date | C4: 0 | H4: Active termine (Y/N) | I4: 0
B5: Email | C5: 0 | H5: Urgency (High/Med/Low) | I5: 0
B6: Phone | C6: 0 | H6: Building type | I6: 0
B7: Linear meter soil* | C7: 55 | H7: (House/Commercial/Government/Others)
B8: Linear meter concrete* | C8: 15
B10: TREATEMENT TO ACTIVE TERMITE (Stage 1)
B11: Amount of AG station required* | C11: 3
B12: Estimated visitation* | C12: 4
B13: Termite species | C13: Coptotermes spp
B14: Quantity of bait used* | C14: 0.5
B15: Distance To and From job site* | C15: 30 | E15: (*) Required field
B17: TERMITE MANAGEMENT SYSTEM (Stage 2)
B18: Number of In Ground station required | C18: =ROUND((C7/3),0) -> 18
B19: Number of In Concrete Station required | C19: =ROUND((C8/3),0) -> 5
B21: Monitoring and maintenance of system - Current year
B22: Annual visitation | C22: =10-C12 -> 6
B23: Timber replacement | C23: 0
B25: Monitoring and maintenance of system - Following year
B26: Annual visitation | C26: 8
B27: Timber replacement (pairs) | C27: =ROUND(((C7+C8)/3),0) -> 23
B29: BUSINESS PROFITABILITY
B30: TERMITE TREATMENT STAGE 1
B31: Quote to Home Owner (Colony Elimination)* | C31: 1100
B32: Purchase of Above ground station | C32: =+C11*Settings!D4 -> 16.5 | D32: =SUM(C32:C36) -> 268.5
B33: Installation of AG station | C33: =(15/60)*C11*Settings!D14 -> 22.5
B34: Exterminex™ termite bait | C34: =+C14*Settings!D5 -> 94.5
B35: Visitation/Inspection cost | C35: =+Settings!D15*'Baiting Calculator'!C15*'Baiting Calculator'!C12*Settings!D14 -> 120
B36: Fuel | C36: =+C12*C15*Settings!D13 -> 15
B38: TERMITE MANAGEMENT STAGE 2
B39: Sale of In Ground Station (Home Owner) | C39: =+Settings!D19*'Baiting Calculator'!C18 -> 1584
B40: Sale of In Concrete Station | C40: =+Settings!D20*'Baiting Calculator'!C19 -> 550
B41: Visitation & Inspection, charged to home owner | C41: =IF(+C39=0,0,+Settings!D16*'Baiting Calculator'!C22) -> 660
B42: Cost of IG station | C42: =IF(+C39=0,0,+C18*Settings!D6) -> 270 | D42: =SUM(C42:C47) -> 660
B43: Cost of In Concrete Sation | C43: =IF(+C40=0,0,+C19*Settings!D7) -> 60
B44: Install IG station | C44: =IF(+C39=0,0,+C18*(0.166666666666667)*Settings!D14) -> 90
B45: Install In Concrete Station | C45: =IF(+C40=0,0,+C19*(0.25)*Settings!D14) -> 37.5
B46: Visitation / Inspection | C46: =IF(C39=0,0,+C22*Settings!D15*'Baiting Calculator'!C15*Settings!D14) -> 180
B47: Fuel | C47: =IF(+C46=0,0,+C22*C15*Settings!D13) -> 22.5
B49: YEAR 2
B50: Renewal of Structural Protection Plan | C50: =+C26*Settings!D16 -> 880
B51: Visitation / Inspection cost | C51: =+C26*Settings!D15*'Baiting Calculator'!C15*Settings!D14 -> 240 | D51: =SUM(C51:C53) -> 326.0625
B52: Fuel | C52: =+C26*C15*Settings!D13 -> 30
B53: Timber replacement | C53: =+Settings!D8*'Baiting Calculator'!C27 -> 56.0625
B56: Exterminex Business Plan | C56: Year 1 | D56: Year 2
B57: Termite Treatment - Exterminex Bait | C57: =+$C$31 -> 1100
B58: Maintenance of structure | C58: =+C39+C40+C41 -> 2794 | D58: =+C50 -> 880
B59: Annual Termite Inspection | C59: =+Settings!D21 -> 0 | D59: =+Settings!D22 -> 179
B60: Quote to home owners | C60: =SUM(C57:C58) -> 3894 | D60: =+D59+D58 -> 1059
B61: Total expenses | C61: =+D32+D42 -> 928.5 | D61: =+D51 -> 326.0625
B62: Net Profit | C62: =+C60-C61 -> 2965.5 | D62: =+D60-D61 -> 732.9375
C63: =+C62/C60 -> 0.7615562404 | D63: =+D62/D58 -> 0.8328835227
D65: End

Sheet Settings
C3: Cost of working materials:
C4: Above Ground Station/pc | D4: 5.5
C5: Exterminex bait/kg | D5: 189
C6: In Ground bait station (RTI) | D6: =240/16 -> 15
C7: In Conctere station/pc | D7: 12
C8: Timber replacement (pair) | D8: =39/16 -> 2.4375
C10: Variable cost:
C11: Fuel price/liter | D11: 1.5
C12: Mileage (km/liter) | D12: 12
C13: Cost per km | D13: =+D11/D12 -> 0.125
C14: Labour cost per hour | D14: 30
C15: Travel time (hour/km) | D15: =(30/15)/60 -> 0.03333333333
C16: Charge per visit | D16: 110
C18: Materials/Services sold to Home Owner:
C19: In Ground bait station (RTI) | D19: 88
C20: In Conctere station | D20: 110
C21: Termite Inspection (Prior to Install) | D21: 0
C22: Annual Termite Inspection (Year 2) | D22: 179
